Cogmind - Beta 16 @@@ ROGUE MODE // 2025.10.26 @ 23:00:33 Player: MolePlayingNice Result: Destroyed by V6-74X(R) with Subdweller Machine Gun Performance ------------- Evolutions (0) 0 Regions Visited (2) 400 Robots Destroyed (27) 135 Value Destroyed (475) 475 Prototype IDs (0) 0 Alien Tech Used (0) 0 Bonus (0) 0 TOTAL SCORE: 1010 Bonus ------- None Cogmind --------- Core Integrity 0/250 Matter 298/300 Energy 92/100 System Corruption 0% Temperature Cool (0) Movement Core (50) Location -10/Subcaves Parts ------- > --- POWER (1) -------- (None) > --- PROPULSION (2) --- Improved Treads Improved Treads > --- UTILITY (2) ------ (None) > --- WEAPON (2) ------- (None) > --- INVENTORY (5) ---- Subdweller Power Source Light Treads Barrage Gun Slug Cannon Scrap Shield Fragment (48) Peak State ------------ > --- POWER ------------ Light Ion Engine > --- PROPULSION ------- Improved Treads Improved Treads > --- UTILITY ---------- Heat Sink Large Storage Unit > --- WEAPON ----------- Particle Cannon Slug Cannon > --- INVENTORY -------- Light Ion Engine Light Ion Engine Light Treads Improved Treads Improved Treads Heat Sink Medium Matter Pod Improved Terrain Scanner Seismic Detector Particle Cannon Particle Cannon Particle Cannon Light Assault Rifle Datajack Mining Laser [Rating: 15] Favorites ----------- Power Light Ion Engine Engine Light Ion Engine Propulsion Improved Treads Treads Improved Treads Leg Aluminum Leg Utility Large Storage Unit Device Heat Sink Storage Large Storage Unit Processor Targeting Computer Protection Scrap Shield Weapon Particle Cannon Energy Gun Medium Laser Energy Cannon Particle Cannon Ballistic Gun Subdweller Machine Gun Ballistic Cannon Slug Cannon Launcher Grenade Launcher Build | -11 -10 -10 ------- Run | Yrd Mat Sub Slots Evolved . | . . . Power . | . . . Propulsion . | . . . Utility . | . . . Weapon . | . . . Parts Attached 30 | 2 15 13 Power 4 | . 2 2 Engine 4 | . 2 2 Core . | . . . Reactor . | . . . Propulsion 7 | 2 2 3 Treads 7 | 2 2 3 Leg . | . . . Wheel . | . . . Hover . | . . . Flight . | . . . Utility 7 | . 3 4 Device 4 | . 1 3 Storage 1 | . 1 . Processor 1 | . 1 . Hackware . | . . . Protection 1 | . . 1 Artifact . | . . . Weapon 12 | . 8 4 Energy Gun 3 | . 3 . Energy Cannon 6 | . 4 2 Ballistic Gun 1 | . . 1 Ballistic Cannon 1 | . . 1 Launcher 1 | . 1 . Special Weapon . | . . . Impact Weapon . | . . . Slashing Weapon . | . . . Piercing Weapon . | . . . Special Melee Weapon . | . . . Unidentified Prototypes . | . . . Parts Lost 4 | . 1 3 Power . | . . . Propulsion . | . . . Utility 2 | . . 2 Weapon 2 | . 1 1 Highest Loss Streak 2 | . 1 2 To Critical Strikes . | . . . Average Backups 10 | 6 13 8 Power 1 | 1 2 . Propulsion 2 | 4 3 1 Utility 2 | . 3 1 Weapon 3 | 1 3 3 Tool/Special . | . . . Unused Backups 19 | . 9 10 Power 3 | . 1 2 Propulsion 6 | . 5 1 Utility 4 | . 2 2 Weapon 5 | . 1 4 Tool/Special 1 | . . 1 Average Slot Usage (%) 94 | . 98 92 Engine 14 | . 14 14 Treads 28 | . 28 28 Device 7 | . 10 6 Storage 9 | . 14 6 Processor 1 | . 3 . Protection 4 | . . 7 Energy Gun 5 | . 14 . Energy Cannon 16 | . 12 18 Ballistic Gun 4 | . . 7 Ballistic Cannon 1 | . . 1 Peak Build Rating 15 | 6 13 15 Average Rating 12 | 6 9 14 On Entrance 8 | 6 6 13 Avg Prop Armor Cover (%) 41 | . . 41 Naked Turns . | . . . Heaviest Build 39 | 11 34 39 Greatest Support 46 | 40 46 46 Greatest Overweight (x) . | . . . Average Overweight (x) . | . . . Largest Inventory Capacity 15 | 8 15 15 Average Capacity 11 | 8 14 9 Most Carried 15 | 6 15 15 Average Carried 10 | 4 13 9 Final Capacity 15 | 8 15 5 Final Carried 15 | 4 15 5 Class Distribution -------------------- 63% | Mutant 33% | Subdweller-Mutant Dominant Class ---------------- Mutant | -10/Materials Subdweller-Mutant | -10/Subcaves Resources | -11 -10 -10 ----------- Run | Yrd Mat Sub Matter Collected 798 | 216 205 377 Remotely . | . . . Salvage Created 747 | . 359 388 Parts 63 | . 26 37 Haulers Intercepted 1 | . 1 . Recyclers Shooed . | . . . Parts Field Recycled . | . . . Retrieved Matter . | . . . Parts Self-Destructed 21 | . . 21 Prevented . | . . . Parts Restored . | . . . Kills | -11 -10 -10 ------- Run | Yrd Mat Sub Combat Hostiles Destroyed 22 | . 11 11 Guns 4 | . 4 . Cannons 13 | . 2 11 AOE 5 | . 5 . Classes Destroyed 8 | . 7 1 Worker 1 | . 1 . Tunneler 1 | . 1 . Hauler 1 | . 1 . Recycler 1 | . 1 . Watcher 1 | . 1 . Swarmer 14 | . 6 8 Grunt 5 | . 5 . Subdweller 3 | . . 3 Best Kill Streak 6 | . 6 3 Combat Bots Only 5 | . 5 3 Max Kills in Single Turn 2 | . 2 2 Gunslinging . | . . . Exploded 2 | . 2 . Melee . | . . . Uniques/NPCs Destroyed . | . . . Combat | -11 -10 -10 -------- Run | Yrd Mat Sub Hostile Shots Fired 136 | . 40 96 Missed 34 | . 8 26 Hits 102 | . 32 70 Projectile 102 | . 32 70 AOE 5 | . . 5 Damage Taken 1613 | . 376 1237 Core 271 | . 73 198 Absorbed by Shields . | . . . Core Remaining (%) 100 | 100 . . Volleys Fired 78 | . 35 43 Largest 2 | . 2 2 Hottest 136 | . 136 136 Shots Fired 137 | . 59 78 Gun 52 | . 39 13 Cannon 76 | . 11 65 Launcher 9 | . 9 . Special . | . . . Kinetic 19 | . . 19 Thermal 103 | . 44 59 Explosive 9 | . 9 . Electromagnetic 6 | . 6 . Robot Hit Streak 18 | . 7 18 Robot Miss Streak 6 | . 6 4 Penetration Max . | . . . Secondary Targets . | . . . Shots Hit Robots 69 | . 28 41 Core Hits 37 | . 20 17 Critical Kills . | . . . Critical Parts Destroyed 1 | . . 1 Critical Strikes 2 | . 1 1 Burn 1 | . 1 . Destroy 1 | . . 1 Melee Attacks . | . . . Impact . | . . . Slashing . | . . . Piercing . | . . . Sneak Attacks . | . . . Combat Hostiles . | . . . Follow-up Attacks . | . . . Damage Inflicted 1814 | . 851 963 Guns 425 | . 266 159 Cannons 842 | . 38 804 Explosions 533 | . 533 . Melee . | . . . Ramming 14 | . 14 . Kinetic 223 | . . 223 Thermal 992 | . 252 740 Explosive 533 | . 533 . Electromagnetic 52 | . 52 . Impact . | . . . Slashing . | . . . Piercing . | . . . Highest Corruption . | . . . Average Corruption . | . . . Corruption Purged . | . . . Corruption Blocked . | . . . Overload Shots . | . . . Overflow Damage 33 | . 32 1 Projectiles 1 | . . 1 Explosions 32 | . 32 . Melee . | . . . Knockbacks 1 | . 1 . Impact 1 | . 1 . Kinetic . | . . . Secondary . | . . . Self-Inflicted Damage 61 | . 61 . Shots 2 | . 2 . Rammed 3 | . 3 . Targets Rammed 4 | . 4 . Kicked . | . . . Crushed 1 | . 1 . Highest Temperature 198 | . 198 40 Average Temperature 59 | . 69 14 Received Heat Transfer 201 | . 102 99 Siege Activations . | . . . Martial Activations . | . . . Shielding Activations . | . . . Robots Disrupted . | . . . Combat Hostiles . | . . . Robots Corrupted . | . . . Combat Hostiles . | . . . Parts Fried . | . . . Impact Corruptions . | . . . Robots Melted . | . . . Combat Hostiles . | . . . Parts Melted . | . . . Heat Transferred 1988 | . 730 1258 Parts Sabotaged . | . . . Parts Stolen . | . . . Parts Stripped . | . . . Power Chain Reactions . | . . . Alert | -11 -10 -10 ------- Run | Yrd Mat Sub Maximum Alert Level . | . . . Low Security (%) 100 | 100 100 . Level 1 . | . . . Level 2 . | . . . Level 3 . | . . . Level 4 . | . . . Level 5 . | . . . High Security . | . . . Max Security . | . . . Peak Influence 148 | . 148 . Initial . | . . . Average 49 | . 50 . Influence Increases 661 | . 406 255 Destroy 0b10 Robot/C 380 | . 220 160 Destroy 0b10 Robot/NC 25 | . 25 . Destroy Leader 64 | . 44 20 Successful Hack 28 | . 28 . Destroy Structure 44 | . 44 . Lose Combat Pursuer 120 | . 45 75 Influence Decreases 661 | . 384 277 Entered New Map 11 | . . 11 Time Decay 635 | . 374 261 Lost Part 15 | . 10 5 Squads Dispatched 1 | . 1 . Investigation . | . . . Extermination . | . . . Reinforcement 1 | . 1 . Assault . | . . . Garrison . | . . . Intercept . | . . . Searches Triggered . | . . . Construction Impeded . | . . . Haulers Reinforced . | . . . Active Scanning Responses . | . . . Cargo Convoy Interrupts . | . . . Stealth | -11 -10 -10 --------- Run | Yrd Mat Sub Distress Signals 4 | . 4 . Communications Jammed . | . . . Distress Signals . | . . . Times Spotted 43 | . 20 23 Peak Tracking Total 6 | . 5 6 Tactical Retreats 7 | . 3 4 Traps | -11 -10 -10 ------- Run | Yrd Mat Sub Traps Triggered 1 | . . 1 Indirectly . | . . . Trap Hack Attempts . | . . . Triggered . | . . . Disarmed . | . . . Reprogrammed . | . . . Reused . | . . . Traps Extracted . | . . . Installed . | . . . Triggered . | . . . Machines | -11 -10 -10 ---------- Run | Yrd Mat Sub Machines Disabled . | . . . Max in Single Turn . | . . . Machines Repaired . | . . . Machines Dismantled . | . . . Machines Sabotaged . | . . . Overloaded Fab Kills . | . . . Hacking | -11 -10 -10 --------- Run | Yrd Mat Sub Machines Accessed 6 | . 6 . Terminals 6 | . 6 . Fabricators . | . . . Repair Stations . | . . . Recycling Units . | . . . Scanalyzers . | . . . Garrison Access . | . . . Total Hacks 13 | . 13 . Successful 3 | . 3 . Failed 10 | . 10 . Catastrophic 4 | . 4 . Database Lockouts . | . . . Manual 6 | . 6 . Terminals 13 | . 13 . Fabricators . | . . . Repair Stations . | . . . Recycling Units . | . . . Scanalyzers . | . . . Garrison Access . | . . . Terminal Hacks 2 | . 2 . Locate Traps 1 | . 1 . Registered Components 1 | . 1 . Fabricator Hacks . | . . . Repair Station Hacks . | . . . Recycling Unit Hacks . | . . . Scanalyzer . | . . . Garrison Access Hacks . | . . . Unauthorized Hacks 1 | . 1 . Terminals 1 | . 1 . Botnet 1 | . 1 . Fabricators . | . . . Repair Stations . | . . . Recycling Units . | . . . Scanalyzers . | . . . Garrison Access . | . . . Data Cores Recovered . | . . . Used . | . . . Hacking Detections 6 | . 6 . Full Trace Events . | . . . Feedback Events . | . . . Feedback Blocked . | . . . Robot Schematics Acquired . | . . . Robots Built . | . . . Authchips . | . . . Time . | . . . Total Robot Build Rating . | . . . Part Schematics Acquired . | . . . Parts Built . | . . . Authchips . | . . . Time . | . . . Total Part Build Rating . | . . . Part Studies Acquired . | . . . Parts Repaired . | . . . Time . | . . . Parts Recycled . | . . . Recycled Matter . | . . . Retrieved Matter . | . . . Retrieved Components . | . . . Parts Scanalyzed . | . . . Part Schematics Acquired . | . . . Parts Damaged . | . . . Bothacking | -11 -10 -10 ------------ Run | Yrd Mat Sub Used RIF Installer . | . . . Robots Hacked . | . . . Non-combat . | . . . Combat . | . . . Robot Hacks Applied . | . . . Relay Couplers Released . | . . . Fabnet Peak Effective % . | . . . Robots Rewired . | . . . Allies Hacked . | . . . Hacks Repelled . | . . . Allies | -11 -10 -10 -------- Run | Yrd Mat Sub Total Allies . | . . . Largest Group . | . . . Highest-Rated Group . | . . . Highest-Rated Ally . | . . . Total Orders . | . . . Ally Attacks . | . . . Total Damage . | . . . Kills . | . . . Allies Corrupted . | . . . Allies Melted . | . . . Intel | -11 -10 -10 ------- Run | Yrd Mat Sub Active Infowar (turns) 536 | . . 536 Optics 64 | . . 64 Seismic 472 | . . 472 Robot Analysis Total . | . . . Derelict Logs Recovered 1 | . . 1 Drone Launches . | . . . Drone Recoveries . | . . . Exploration | -11 -10 -10 ------------- Run | Yrd Mat Sub Turns Passed 3274 | 8 1177 2089 Spaces Moved 1521 | 3 593 925 Core 3 | . . 3 Treads 1518 | 3 593 922 Legs . | . . . Wheels . | . . . Hover . | . . . Flight . | . . . Fastest Speed 50 | 160 160 50 Average Speed 159 | 160 160 159 Slowest Speed 160 | 160 160 160 Overloaded Moves . | . . . Propulsion Burnouts . | . . . Robots Hopped . | . . . Potential Cave-ins . | . . . Cave-ins Triggered . | . . . Exploration Rate (%) 43 | 1 72 56 Regions Visited 2 Branch Regions 1 Pre-discovered Areas . | . . . Known Exits Taken . | . . . Unknown Exits Taken 2 | 1 1 . Scrap Searched . | . . . Spaces Dug . | . . . Terrain Destroyed 69 | . 63 6 Melee . | . . . Projectile 7 | . 1 6 AOE 62 | . 62 . Terrain Rammed . | . . . Walls Destroyed . | . . . Machines Disabled . | . . . Actions | -11 -10 -10 --------- Run | Yrd Mat Sub Total 2234 | 6 765 1463 Wait 517 | . 74 443 Move 1519 | 2 592 925 Hop . | . . . Pick Up 32 | . 22 10 Fast Attach 9 | . 4 5 Attach 4 | . 2 2 Detach 4 | . 2 2 Swap 25 | 2 13 10 Drop 40 | 2 17 21 Fire 78 | . 35 43 Melee . | . . . Ram . | . . . Kick . | . . . Crush 4 | . 4 . Escape Stasis . | . . . Rewire . | . . . Trap . | . . . Miscellaneous 2 | . . 2 Route ------- -11/Scrapyard -10/Materials (discovered 4 exits: [*Mat x2] / [*Min] / [*Sub]) -10/Subcaves (discovered 3 exits: *Mat x2 / [*Rec]) History --------- Turn | Location | Event 6 | -11/Scrapyard | Discovered new exit (range 3) 9 | -11/Scrapyard | Entered Materials 121 | -10/Materials | Discovered new exit (range 11) 262 | -10/Materials | Discovered new exit (range 11) 357 | -10/Materials | Build established: Mutant 561 | -10/Materials | Discovered new exit (range 11) 1148 | -10/Materials | Discovered new exit (range 7) 1186 | -10/Materials | Entered Subcaves 1188 | -10/Subcaves | Shifting Twisted Machinery released Battle Rifle 1191 | -10/Subcaves | Shifting Twisted Machinery released Slug Cannon 1457 | -10/Subcaves | Discovered new exit (range 15) 1729 | -10/Subcaves | Disturbed a concealed Subdweller 1971 | -10/Subcaves | Shifting Twisted Machinery released Spk. Treads 1976 | -10/Subcaves | Shifting Twisted Machinery released Barrage Gun 2070 | -10/Subcaves | Core integrity fell below 50% 2316 | -10/Subcaves | Core integrity fell below 20% 2351 | -10/Subcaves | Discovered new exit (range 16) 2470 | -10/Subcaves | Build established: Subdweller-Mutant 2524 | -10/Subcaves | Identified exit to Materials 3262 | -10/Subcaves | Ambushed by Subdwellers from Twisted Machinery 3275 | -10/Subcaves | Destroyed by V6-74X(R) with Subdweller Machine Gun Last Messages --------------- 02401_ QN-QQY(R) destroyed. 02404_ Acquired 12 matter. 02502_ Sub. Beam Cannon shoots sparks and powers down. 02504_ Dropped Broken Sub. Beam Cannon. 02523_ Sub. Power Source shoots sparks and powers down. 02524_ Acquired derelict log, extracted data. Loading 1 Subcaves exit... 02540_ Triggered Piercing Trap. 02540_ Spikes shoot up from the floor. 02540_ Critical hit (Impale). 03242_ JB-85Q(u) tweaks Twisted Machinery. 03262_ JS-J7M(R) emerges from the Twisted Machinery. 03263_ JB-85Q(u) cries out in pain. 03263_ JB-85Q(u) destroyed. 03269_ Scrap Shield destroyed. 03270_ Sub. Machine Gun destroyed. 03273_ Dropped Particle Cannon. Map ----- +----------------------------------------------------+ | ?????????????????????????????????????????????????? | | ?????????????????????????????????????????????????? | | ?????????????????????????????????????????????????? | | ?????????????????????????????????????????????????? | | ?????????????????????????????????????????????????? | | ?????????????????????????????????????????????????? | | ?????????????????????????????????????????????????? | | ?????????????????????????????????????????????????? | | ?????????????????????????????????????????????????? | | ?????????????????????????????????????????????????? | | ?????????????????????????????????????????????????? | | ?????????????????????????????????????????????????? | | ?????????????????????????????????????????????????? | | ?????????????????????????????????????????????????? | | ???????????? ????????????????????????????????????? | | ???????????? ???????????????????????????????????? | | ???????????? ###???????????????????????????????? | | ????????????? ??????????????????????????????? | | ??????????????? ??????????????????????????????? | | ??????????????? ??????????????????????????????? | | ???????????# ???#" ########??????????????????????? | | ??????????## ?## " #; #??????????????????????? | | ???????#### #; ####??????????????####?? | | ???????? ; """#########???####^ ### | | ?????????????#; """# # ##### ^ ^^ | | ?????????????#; = @ " | | ?????????????# ] # # # ## # # ^ ^ | | ????????????# ## ############# ^^ | | ????????# R # #" ###???## # | | ?????? ;##"""" ] ##??# # | | ?????? ;; """""""" #??# # # | | ??????? "" "#""""" "### ##??## ### | | ??????? ? """"""### """ ## #?# #??# ## | | ?????????? """#??#" #### #?## ##??## # | | ?????????? ?" #???#""""???# ###?## #??# # | | ?????????????????? """"?" ##???# #??###### | | ??????????????????# "??"""" ?????## ##??######### | | ??????????????????# ???## " ??????# #???# ##??? | | ??????????????????##???????" ??????# ##??# ###? | | ??????????????????????????????????## #??# #? | | ??????????????????????????????????# ##??# #? | | ??????????????????????????????????## #??# ## | | ??????????????????????????????????# ##???# # | | ?????????????????????????????????### ##??## | | ????????????????????????????????## #### | | ????????????????????????????????# ## | | ????????????????????????????????## #### | | ?????????????????????????????????# #??## | | ?????????????????????????????????# ??##& | | ????????????????????????????????# #?#"% | +----------------------------------------------------+ Best States ------------- Heat Dissipation 35 Energy Generation 15 Energy Capacity 250 Matter Stores 300 Matter Capacity 300 Sight Range 21 Terrain Scan Density 10 Armor Coverage 800 Evasion (%) 40 Targeting Accuracy 5 Recoil Reduction 2 Item Schematics ----------------- None Robot Schematics ------------------ None Fabricated ------------ Nothing Repaired ---------- Nothing Studied --------- None Alien Tech Used ----------------- None Achievements -------------- Survival Of The Most Covered Challenges ------------ None Game ------ Seed AerolevHugeRegenerator Manual? 0 Play Time 00:16:15 Cumulative 332.6 hours Start 2025.10.26 @ 22:44:43 End 2025.10.26 @ 23:00:33 Sessions 1 Manual Loads 0 Difficulty Rogue Special Mode None Game No. 107 Rogue 107 Adventurer 0 Explorer 0 Win Type - Total 7 Types 3/0/3/0/0/0/0/0/0/1 Lore% 76 Gallery% 83 Achievement% 65 Wizard Run 0 Options --------- Layout 1 ASCII 0 Keyboard 1 Movement Arrows Keybinds 0 Fullscreen 1 Font 24/Smallcaps Map View 50x35 Zoom Use 0% Tactical HUD 1 Map Filters NONE Filters NONE Steam 1 RUN: 50ec2e02-2011-4d4d-9d5d-30eeb6485f80